Cogmind - Beta 13 @@@ ROGUE MODE // 2024.04.23 @ 19:23:33 Player: Exceptionally Mediocre Result: Destroyed by H-66 Slayer with Gauss Rifle Performance ------------- Evolutions (5) 2500 Regions Visited (5) 1000 Robots Destroyed (58) 290 Value Destroyed (1150) 1150 Prototype IDs (3) 60 Alien Tech Used (0) 0 Bonus (30) 30 TOTAL SCORE: 5030 Bonus ------- Follower Combat Kills 30 Cogmind --------- Core Integrity 0/1000 Matter 267/300 Energy 93/100 System Corruption 4% Temperature Cool (0) Movement Rolling (100) Location -5/Factory Parts ------- > --- POWER (2) -------- (None) > --- PROPULSION (4) --- Compact Wheel > --- UTILITY (8) ------ Targeting Computer Experimental Targeting Computer Advanced Melee Analysis Suite Advanced Melee Analysis Suite Advanced Melee Analysis Suite > --- WEAPON (3) ------- (None) > --- INVENTORY (5) ---- Nuclear Pulse Thruster Scrap Engine Huge Storage Unit Heavy Phase Cannon Peak State ------------ > --- POWER ------------ Light Angular Momentum Engine > --- PROPULSION ------- Compact Wheel Compact Wheel > --- UTILITY ---------- Huge Storage Unit Targeting Computer Experimental Targeting Computer Advanced Melee Analysis Suite Advanced Melee Analysis Suite Advanced Melee Analysis Suite > --- WEAPON ----------- Heavy Phase Cannon Makeshift Hammer > --- INVENTORY -------- Medium Treads Nuclear Pulse Thruster Scrap Engine Large Battery Advanced Weight Redist. System Launcher Loader Launcher Loader Heavy Phase Cannon Heavy Phase Cannon Heavy Phase Cannon Mini Assault Cannon Mini Assault Cannon Enhanced Gauss Cannon [Rating: 48] Favorites ----------- Power Light Ion Engine Engine Light Ion Engine Power Core Light Nuclear Core Propulsion Light Treads Treads Light Treads Wheel Wheel Flight Unit VTOL Module Utility Huge Storage Unit Device Structural Scanner Storage Huge Storage Unit Processor Targeting Computer Hackware System Shield Protection Light Armor Plating Weapon Assault Rifle Energy Gun Gatling Laser Energy Cannon Subdweller Beam Cannon Ballistic Gun Assault Rifle Ballistic Cannon Mini Assault Cannon Launcher Grenade Launcher Impact Weapon Makeshift Hammer Build | -11 -10 -10 -10 -7 -5 ------- Run | Yrd Mat Min Sub Rec Fac Slots Evolved 10 | . . . . . 10 Power 1 | . . . . . 1 Propulsion 2 | . . . . . 2 Utility 6 | . . . . . 6 Weapon 1 | . . . . . 1 Parts Attached 83 | 7 3 8 19 6 40 Power 9 | 1 . 1 2 1 4 Engine 8 | 1 . 1 2 1 3 Core 1 | . . . . . 1 Reactor . | . . . . . . Propulsion 31 | 2 . 3 7 2 17 Treads 11 | 2 . 1 2 2 4 Leg . | . . . . . . Wheel 12 | . . 2 5 . 5 Hover . | . . . . . . Flight 8 | . . . . . 8 Utility 21 | 2 3 . 2 2 12 Device 7 | 1 1 . 1 . 4 Storage 4 | 1 2 . . . 1 Processor 6 | . . . . 1 5 Hackware 1 | . . . . . 1 Protection 3 | . . . 1 1 1 Artifact . | . . . . . . Weapon 22 | 2 . 4 8 1 7 Energy Gun 1 | . . . . . 1 Energy Cannon 3 | . . . 2 . 1 Ballistic Gun 13 | 2 . 3 4 1 3 Ballistic Cannon 1 | . . . . . 1 Launcher 2 | . . 1 1 . . Special Weapon . | . . . . . . Impact Weapon 2 | . . . 1 . 1 Slashing Weapon . | . . . . . . Piercing Weapon . | . . . . . . Special Melee Weapon . | . . . . . . Unidentified Prototypes 3 | . . . . . 3 Parts Lost 47 | . . 3 7 1 36 Power 7 | . . . 2 . 5 Propulsion 22 | . . 2 3 . 17 Utility 8 | . . . . 1 7 Weapon 10 | . . 1 2 . 7 Highest Loss Streak 12 | . . 2 5 1 12 To Critical Strikes 1 | . . . . . 1 Average Slot Usage (%) 95 | . 100 99 98 100 57 Engine 12 | . 14 14 13 14 2 Treads 20 | . 28 20 15 27 7 Wheel 6 | . . 6 12 . 3 Device 11 | . 14 14 12 . 3 Storage 12 | . 14 14 14 14 3 Processor 2 | . . . . 13 10 Energy Cannon 5 | . . . 12 14 1 Ballistic Gun 16 | . 28 21 9 13 4 Launcher 1 | . . 6 . . . Impact Weapon 2 | . . . 5 . 4 Naked Turns . | . . . . . . Heaviest Build 110 | 13 88 89 97 94 110 Greatest Support 80 | 40 40 40 40 40 80 Greatest Overweight (x) 9 | 1 2 8 9 2 5 Average Overweight (x) 2 | . 1 2 3 2 1 Largest Inventory Capacity 25 | 8 25 25 25 25 25 Average Capacity 23 | 7 23 25 25 25 18 Most Carried 25 | 3 25 25 25 25 24 Average Carried 20 | 1 17 24 24 24 12 Final Capacity 25 | 8 25 25 25 25 5 Final Carried 25 | 3 25 25 24 25 5 Class Distribution -------------------- 81% | Mutant 16% | Scavenger-Mutant Dominant Class ---------------- Mutant | -10/Materials Mutant | -10/Mines Mutant | -10/Subcaves Mutant | -7/Recycling Scavenger-Mutant | -5/Factory Resources | -11 -10 -10 -10 -7 -5 ----------- Run | Yrd Mat Min Sub Rec Fac Matter Collected 1873 | 330 261 196 470 63 553 Remotely . | . . . . . . Salvage Created 2238 | 144 347 234 237 63 1213 Parts 129 | 9 29 26 14 4 47 Haulers Intercepted 2 | . 1 . . . 1 Recyclers Shooed 6 | 2 . 1 . . 3 Parts Field Recycled . | . . . . . . Retrieved Matter . | . . . . . . Parts Self-Destructed 19 | . . . 19 . . Prevented . | . . . . . . Kills | -11 -10 -10 -10 -7 -5 ------- Run | Yrd Mat Min Sub Rec Fac Combat Hostiles Destroyed 49 | . 7 21 8 1 12 Guns 23 | . 7 7 1 . 8 Cannons 9 | . . . 7 1 1 AOE 17 | . . 14 . . 3 Classes Destroyed 13 | 2 6 1 1 1 2 Worker 5 | . 2 1 . . 2 Builder 2 | . 1 1 . . . Tunneler 3 | 3 . . . . . Hauler 2 | . 1 . . . 1 Recycler 8 | 1 . 1 . . 6 Operator 1 | . 1 . . . . Swarmer 24 | . 3 9 3 . 9 Grunt 5 | . 4 . . . 1 Sentry 1 | . . . . 1 . Hunter 1 | . . . . . 1 Programmer 1 | . . . . . 1 Subdweller 5 | . . . 5 . . Assembled 12 | . . 12 . . . Best Kill Streak 8 | 2 3 8 4 1 7 Combat Bots Only 5 | . 3 4 4 1 5 Max Kills in Single Turn 7 | 2 1 2 1 1 7 Gunslinging . | . . . . . . Exploded 3 | . . 2 . . 3 Melee . | . . . . . . Uniques/NPCs Destroyed . | . . . . . . Combat | -11 -10 -10 -10 -7 -5 -------- Run | Yrd Mat Min Sub Rec Fac Hostile Shots Fired 441 | . 24 37 64 36 280 Missed 117 | . 5 11 17 11 73 Damage Taken 5480 | . 185 516 703 192 3884 Core 1247 | . 26 104 71 28 1018 Absorbed by Shields . | . . . . . . Redirected to Shielding 35 | . . . . . 35 Core Remaining (%) 54 | 100 . . . 8 . Volleys Fired 182 | 10 23 43 43 5 58 Largest 2 | 2 2 2 2 2 2 Hottest 118 | 40 40 50 110 108 118 Shots Fired 267 | 20 46 55 58 10 78 Gun 189 | 20 46 37 20 5 61 Cannon 59 | . . . 37 5 17 Launcher 19 | . . 18 1 . . Special . | . . . . . . Kinetic 195 | 20 46 37 20 5 67 Thermal 53 | . . . 37 5 11 Explosive 19 | . . 18 1 . . Electromagnetic . | . . . . . . Robot Hit Streak 12 | 4 5 5 12 5 10 Robot Miss Streak 8 | 2 4 5 2 2 8 Penetration Max 1 | . . . . . 1 Secondary Targets 2 | . 1 . . . 1 Max Gunslinging Chain 1 | . 1 . . . 1 Shots Hit Robots 151 | 13 22 26 27 5 58 Core Hits 121 | 5 17 41 12 3 43 Critical Kills . | . . . . . . Critical Parts Destroyed 2 | . . . . . 2 Critical Strikes 2 | . . . . . 2 Destroy 1 | . . . . . 1 Smash 1 | . . . . . 1 Melee Attacks 12 | . . . 11 . 1 Impact 12 | . . . 11 . 1 Slashing . | . . . . . . Piercing . | . . . . . . Sneak Attacks 1 | . . . . . 1 Combat Hostiles . | . . . . . . Follow-up Attacks . | . . . . . . Damage Inflicted 4417 | 175 282 1200 617 104 2039 Guns 1860 | 175 282 282 161 48 912 Cannons 736 | . . . 386 56 294 Explosions 1731 | . . 918 70 . 743 Melee 90 | . . . . . 90 Ramming . | . . . . . . Kinetic 1991 | 175 282 282 161 48 1043 Thermal 1348 | . . . 386 56 906 Explosive 988 | . . 918 70 . . Electromagnetic . | . . . . . . Impact 90 | . . . . . 90 Slashing . | . . . . . . Piercing . | . . . . . . Highest Corruption 4 | . . 2 2 2 4 Average Corruption 2 | . . 2 2 2 4 Corruption Purged . | . . . . . . Corruption Blocked . | . . . . . . Effects 47 | . . 4 30 5 8 Message Errors 11 | . . 1 8 1 1 Matter Fused 11 | . . . 6 2 3 Heat Flow Errors 7 | . . . 5 . 2 Energy Discharges 10 | . . 1 7 1 1 Parts Rejected 1 | . . . . . 1 Data Loss (minor) 4 | . . 2 2 . . Data Loss (major) 3 | . . . 2 1 . Overload Shots . | . . . . . . Overflow Damage 371 | . . 12 . . 359 Projectiles . | . . . . . . Explosions 281 | . . 12 . . 269 Melee 90 | . . . . . 90 Knockbacks 3 | . . . . . 3 Impact 1 | . . . . . 1 Kinetic 2 | . . . . . 2 Secondary . | . . . . . . Self-Inflicted Damage 398 | . . 221 7 . 170 Shots 10 | . . 7 1 . 2 Rammed . | . . . . . . Targets Rammed . | . . . . . . Kicked . | . . . . . . Crushed . | . . . . . . Highest Temperature 306 | . 5 15 245 306 251 Average Temperature 85 | . 5 12 58 151 83 Received Heat Transfer 346 | . 60 40 123 60 63 Effects 1 | . . . . 1 . Energy Bleed 1 | . . . . 1 . Siege Activations . | . . . . . . Robots Corrupted . | . . . . . . Combat Hostiles . | . . . . . . Parts Fried . | . . . . . . Impact Corruptions 2 | . . . . . 2 Robots Melted . | . . . . . . Combat Hostiles . | . . . . . . Parts Melted 3 | . . . 2 . 1 Heat Transferred 1227 | . . . 518 74 635 Parts Sabotaged . | . . . . . . Parts Stolen . | . . . . . . Parts Stripped . | . . . . . . Power Chain Reactions . | . . . . . . Alert | -11 -10 -10 -10 -7 -5 ------- Run | Yrd Mat Min Sub Rec Fac Peak Influence 271 | 20 141 185 . 172 271 Initial 159 | . 13 . . 159 . Average 61 | 6 19 88 . 140 77 Maximum Alert Level 1 | . . . . . 1 Low Security (%) 97 | 100 100 100 . 100 82 Level 1 2 | . . . . . 17 Level 2 . | . . . . . . Level 3 . | . . . . . . Level 4 . | . . . . . . Level 5 . | . . . . . . High Security . | . . . . . . Max Security . | . . . . . . Squads Dispatched 4 | . 2 . . . 2 Investigation 1 | . 1 . . . . Extermination . | . . . . . . Reinforcement 3 | . 1 . . . 2 Assault . | . . . . . . Garrison . | . . . . . . Intercept . | . . . . . . Searches Triggered . | . . . . . . Construction Impeded . | . . . . . . Haulers Reinforced 1 | . . . . . 1 Active Scanning Responses . | . . . . . . Cargo Convoy Interrupts . | . . . . . . Stealth | -11 -10 -10 -10 -7 -5 --------- Run | Yrd Mat Min Sub Rec Fac Distress Signals 1 | . . . . . 1 Communications Jammed . | . . . . . . Distress Signals . | . . . . . . Times Spotted 90 | . 11 26 31 1 21 Peak Tracking Total 7 | . 4 4 6 1 7 Tactical Retreats 7 | . . 3 3 . 1 Traps | -11 -10 -10 -10 -7 -5 ------- Run | Yrd Mat Min Sub Rec Fac Traps Triggered 2 | . 1 . . . 1 Indirectly . | . . . . . . Trap Hack Attempts . | . . . . . . Triggered . | . . . . . . Disarmed . | . . . . . . Reprogrammed . | . . . . . . Reused . | . . . . . . Traps Extracted . | . . . . . . Installed . | . . . . . . Triggered . | . . . . . . Machines | -11 -10 -10 -10 -7 -5 ---------- Run | Yrd Mat Min Sub Rec Fac Machines Disabled 4 | . . . . . 4 Max in Single Turn 4 | . . . . . 4 Machines Repaired . | . . . . . . Machines Dismantled . | . . . . . . Machines Sabotaged . | . . . . . . Overloaded Fab Kills . | . . . . . . Hacking | -11 -10 -10 -10 -7 -5 --------- Run | Yrd Mat Min Sub Rec Fac Machines Accessed 5 | . 3 1 . 1 . Terminals 4 | . 3 . . 1 . Fabricators . | . . . . . . Repair Stations . | . . . . . . Recycling Units . | . . . . . . Scanalyzers . | . . . . . . Garrison Access . | . . . . . . Total Hacks 9 | . 7 1 . 1 . Successful 4 | . 3 1 . . . Failed 5 | . 4 . . 1 . Catastrophic 1 | . 1 . . . . Database Lockouts . | . . . . . . Manual 7 | . 6 . . 1 . Terminals 8 | . 7 . . 1 . Fabricators . | . . . . . . Repair Stations . | . . . . . . Recycling Units . | . . . . . . Scanalyzers . | . . . . . . Garrison Access . | . . . . . . Terminal Hacks 2 | . 1 1 . . . Record 1 | . 1 . . . . Open Door 1 | . . 1 . . . Fabricator Hacks . | . . . . . . Repair Station Hacks . | . . . . . . Recycling Unit Hacks . | . . . . . . Scanalyzer . | . . . . . . Garrison Access Hacks . | . . . . . . Unauthorized Hacks 2 | . 2 . . . . Terminals 2 | . 2 . . . . Botnet 2 | . 2 . . . . Fabricators . | . . . . . . Repair Stations . | . . . . . . Recycling Units . | . . . . . . Scanalyzers . | . . . . . . Garrison Access . | . . . . . . Data Cores Recovered . | . . . . . . Used . | . . . . . . Hacking Detections 2 | . 2 . . . . Full Trace Events 1 | . 1 . . . . Feedback Events . | . . . . . . Feedback Blocked . | . . . . . . Robot Schematics Acquired . | . . . . . . Robots Built . | . . . . . . Authchips . | . . . . . . Time . | . . . . . . Total Robot Build Rating . | . . . . . . Part Schematics Acquired . | . . . . . . Parts Built . | . . . . . . Authchips . | . . . . . . Time . | . . . . . . Total Part Build Rating . | . . . . . . Parts Repaired . | . . . . . . Time . | . . . . . . Parts Recycled . | . . . . . . Recycled Matter . | . . . . . . Retrieved Matter . | . . . . . . Retrieved Components . | . . . . . . Parts Scanalyzed . | . . . . . . Part Schematics Acquired . | . . . . . . Parts Damaged . | . . . . . . Bothacking | -11 -10 -10 -10 -7 -5 ------------ Run | Yrd Mat Min Sub Rec Fac Used RIF Installer . | . . . . . . Robots Hacked . | . . . . . . Non-combat . | . . . . . . Combat . | . . . . . . Robot Hacks Applied . | . . . . . . Relay Couplers Released . | . . . . . . Fabnet Peak Effective % . | . . . . . . Robots Rewired . | . . . . . . Allies Hacked . | . . . . . . Hacks Repelled . | . . . . . . Allies | -11 -10 -10 -10 -7 -5 -------- Run | Yrd Mat Min Sub Rec Fac Total Allies 1 | . . 1 . . . Largest Group 1 | . . 1 1 . . Highest-Rated Group 31 | . . 31 31 . . Highest-Rated Ally 31 | . . 31 31 . . Total Orders . | . . . . . . Ally Attacks 8 | . . . 8 . . Total Damage 129 | . . . 129 . . Kills 1 | . . . 1 . . Allies Corrupted . | . . . . . . Allies Melted . | . . . . . . Intel | -11 -10 -10 -10 -7 -5 ------- Run | Yrd Mat Min Sub Rec Fac Robot Analysis Total . | . . . . . . Derelict Logs Recovered 4 | . . 2 2 . . Drone Launches . | . . . . . . Drone Recoveries . | . . . . . . Exploration | -11 -10 -10 -10 -7 -5 ------------- Run | Yrd Mat Min Sub Rec Fac Turns Passed 6062 | 130 1653 1160 2065 487 567 Spaces Moved 2321 | 57 557 426 897 128 256 Core 51 | 5 . . . . 46 Treads 1349 | 52 557 241 318 128 53 Legs . | . . . . . . Wheels 916 | . . 185 579 . 152 Hover . | . . . . . . Flight 5 | . . . . . 5 Fastest Speed 26 | 50 160 140 130 360 26 Average Speed 232 | 152 279 243 210 360 138 Slowest Speed 480 | 160 320 480 340 360 410 Overloaded Moves . | . . . . . . Propulsion Burnouts . | . . . . . . Robots Hopped . | . . . . . . Cave-ins Triggered . | . . . . . . Exploration Rate (%) 41 | 5 65 84 54 30 11 Regions Visited 5 Branch Regions 3 Pre-discovered Areas . | . . . . . . Known Exits Taken . | . . . . . . Unknown Exits Taken 5 | 1 1 1 1 1 . Scrap Searched 3 | . . 1 2 . . Spaces Dug 16 | . . 10 6 . . Terrain Destroyed 152 | . . 98 16 3 35 Melee 6 | . . . 6 . . Projectile 11 | . . . 3 3 5 AOE 135 | . . 98 7 . 30 Terrain Rammed . | . . . . . . Walls Destroyed . | . . . . . . Machines Disabled . | . . . . . . Actions | -11 -10 -10 -10 -7 -5 --------- Run | Yrd Mat Min Sub Rec Fac Total 2714 | 77 609 495 1004 146 383 Wait 19 | . 2 2 12 1 2 Move 2316 | 56 556 425 896 127 256 Hop . | . . . . . . Pick Up 72 | 4 22 8 13 4 21 Fast Attach 29 | 6 1 2 1 . 19 Attach 33 | 1 . 2 9 1 20 Detach 4 | . . 1 2 . 1 Swap 21 | . 2 4 9 5 1 Drop 26 | . 3 8 8 3 4 Fire 182 | 10 23 43 43 5 58 Melee 12 | . . . 11 . 1 Ram . | . . . . . . Kick . | . . . . . . Crush . | . . . . . . Escape Stasis . | . . . . . . Rewire . | . . . . . . Trap . | . . . . . . Miscellaneous . | . . . . . . Route ------- -11/Scrapyard -10/Materials (discovered 4 exits: [*Mat x2] / *Min x2) -10/Mines (discovered 3 exits: [*Mat x2] / [*Sub]) -10/Subcaves (discovered 2 exits: [*Mat] / *Rec) -7/Recycling -5/Factory History --------- Turn | Location | Event 36 | -11/Scrapyard | Discovered new exit (range 15) 131 | -11/Scrapyard | Entered Materials 306 | -10/Materials | Build established: Mutant 414 | -10/Materials | Discovered new exit (range 3) 1013 | -10/Materials | Discovered new exit (range 16) 1132 | -10/Materials | Discovered new exit (range 16) 1248 | -10/Materials | Discovered new exit (range 16) 1784 | -10/Materials | Entered Mines 1958 | -10/Mines | Learned 2 Materials zone layouts 2019 | -10/Mines | Discovered new exit (range 9) 2023 | -10/Mines | YI-UF0 nonchalantly dropped a Grenade Launcher on the ground 2238 | -10/Mines | Found a hidden stash of uninstalled traps 2315 | -10/Mines | Learned Materials non-interactive machine intel 2394 | -10/Mines | Assembled infested the area 2399 | -10/Mines | Assisted by a Guerilla fighting off Assembled 2685 | -10/Mines | Core integrity fell below 50% 2693 | -10/Mines | Discovered new exit (range 8) 2740 | -10/Mines | Escorted by a lone wolf Derelict 2807 | -10/Mines | Discovered new exit (range 16) 2868 | -10/Mines | Found the Drone Emporium 2875 | -10/Mines | Found Prototype Device 2944 | -10/Mines | Entered Subcaves 2944 | -10/Subcaves | Accompanied by 1 ally 2977 | -10/Subcaves | Learned 8 Materials zone layouts 3054 | -10/Subcaves | Discovered new exit (range 15) 3143 | -10/Subcaves | Learned Materials stockpile data 3181 | -10/Subcaves | A swath of the cavern ceiling suddenly collapsed 3225 | -10/Subcaves | Shifting Twisted Machinery released Sub. Monowheel 3310 | -10/Subcaves | Shifting Twisted Machinery released Barrage Gun 3315 | -10/Subcaves | Shifting Twisted Machinery released Sub. Beam Cannon 3373 | -10/Subcaves | Build established: Scavenger-Mutant 3844 | -10/Subcaves | Core integrity fell below 20% 3893 | -10/Subcaves | Lost 5 parts (1p2n2w) 4102 | -10/Subcaves | Build established: Mutant 4879 | -10/Subcaves | Discovered new exit (range 8) 5009 | -10/Subcaves | Entered Recycling 5064 | -7/Recycling | Found Scrap Engine 5442 | -7/Recycling | Discovered new exit (range 16) 5496 | -7/Recycling | Entered Factory 5496 | -5/Factory | Evolved 10 slots: Power x1, Propulsion x2, Utility x6, Weapon x1 5498 | -5/Factory | Identified Splice Drone Bay 5706 | -5/Factory | Lost 12 parts (3p5n3u1w) 5782 | -5/Factory | Lost 9 parts (4n3u2w) 5795 | -5/Factory | Core integrity fell below 50% 5825 | -5/Factory | Lost 5 parts (4n1w) 5899 | -5/Factory | Found Prototype Processor 5899 | -5/Factory | Identified Exp. Targeting Computer 5945 | -5/Factory | Found Launcher Loader 5947 | -5/Factory | Found Launcher Loader 6045 | -5/Factory | Core integrity fell below 20% 6063 | -5/Factory | Destroyed by H-66 Slayer with Gauss Rifle Last Messages --------------- 06052_ Acquired Hvy. Phase Cannon. 06054_ Penetrated by Slug. 06054_ Med. Treads destroyed. 06054_ Knocked back. 06054_ Penetrated by Slug. 06055_ K-01 Serf collects debris. 06055_ Acquired 2 matter. 06057_ U-05 Engineer builds a Wall. 06058_ R-10 Processor collects Autogun. 06059_ Slug penetrates Door. 06060_ O-24 Administrator: "IFF HANDSHAKE FAILED. SECURING TERMINAL." 06060_ Acquired Com. Wheel. 06060_ K-01 Serf collects debris. 06061_ R-10 Processor collects Med. Storage Unit. 06061_ R-10 Processor collects Com. Wheel. 06062_ U-05 Engineer builds a Door. 06063_ U-05 Engineer builds a Wall. 06063_ Slug penetrates Wall. Map ----- +----------------------------------------------------+ | ????????????????????????????" " " "?# #??"???? | | ????????????????????????????" " " " # #??????? | | ????????????????????????????" " " " # #??????? | | ????????????????????????????" " " " / #??????? | | ????????????????????????????" " " " # #??????? | | ????????????????????????????" " " " # #??????? | | ????????????????????????????" " " "?## #??????# | | ??????????????????###???????? " " "??# ####### | | ??????????????????? ???????? ???# + | | ?????????????# ???? ??????? ???# #? | | ?????????????# ??? ???????#+######## #? | | ?????????????# "?? ???????#^ ^ #? | | ?????????????? ""?? ???????# #? | | ??????????????? ######## !! ## | | ???????????????? ^ ! % ! | | ?????????????????########### ^ % | | ?????????????????# %%! # ^ % "T" | | ????????????????## %]] # """ ^ | | ????????????????## !! ] #% """ ! """ """ | | ????????????????## ]] # """ """ """ | | ????????????????## !!=! %u% """ """ | | ?????????????????# %!!! R# | | ?????????????????# ! H # # """ """ | | ?????????????????# =Ruu########## """ """ | | ?????????????????########/## # """ ""??? | | ??????????????????????# @ ????? | | ??????????????????????# A """ "????? | | ??????????????????????# """ "????? | | ??????????????????????# t"?? ?????? | | ??????????????????????# ?? ?????? | | ??????????????????????+ ??? ?????? | | ??????????????????????# ?????????? | | ??????????????????????# ??????????? | | ??????????????????????# ??????????? | | ??????????????????????# ???????????? | | ??????????????????????# ####+#######???????????? | | ??????????????????????# ???????????????????????? | | ??????????????????????# ???????????????????????? | | ??????????????????????# ???????????????????????? | | ??????????????????????# ???????????????????????? | | ??????????????????????? ???????????????????????? | | ?????????????????????????????????????????????????? | | ?????????????????????????????????????????????????? | | ?????????????????????????????????????????????????? | | ?????????????????????????????????????????????????? | | ?????????????????????????????????????????????????? | | ?????????????????????????????????????????????????? | | ?????????????????????????????????????????????????? | | ?????????????????????????????????????????????????? | | ?????????????????????????????????????????????????? | +----------------------------------------------------+ Best States ------------- Heat Dissipation 40 Energy Generation 18 Energy Capacity 160 Matter Stores 300 Matter Capacity 300 Sight Range 16 Robot Scan Range 14 Terrain Scan Range 16 Terrain Scan Density 10 Armor Coverage 150 Utility Shielding 33 Evasion (%) 50 Targeting Accuracy 17 Melee Accuracy 24 Recoil Reduction 4 Defensive Hacking 10 Item Schematics ----------------- None Robot Schematics ------------------ None Fabricated ------------ Nothing Alien Tech Used ----------------- None Achievements -------------- None Challenges ------------ None Game ------ Seed HardlightSpliceHumpback Manual? 0 Play Time 00:34:30 Cumulative 102.2 hours Start 2024.04.23 @ 18:48:00 End 2024.04.23 @ 19:23:33 Sessions 1 Manual Loads 0 Difficulty Rogue Special Mode None Game No. 119 Rogue 119 Adventurer 0 Explorer 0 Win Type - Total 0 Types 0/0/0/0/0/0/0/0/0 Lore% 27 Gallery% 53 Achievement% 40 Wizard Run 0 Options --------- Layout 1 ASCII 0 Keyboard 1 Movement Vi Keybinds 0 Fullscreen 1 Font 24/Smallcaps Map View 50x35 Zoom Use 0% Tactical HUD 1 Map Filters NONE Filters NONE Steam 1 RUN: c1ae9833-aafc-40ef-9529-5dbce1a79c75